fUST/lending_fUST_20241228
["ID","MTS","AMOUNT","RATE_DAILY","PERIOD"]
[346913609,1735368638756,-500.0,0.00013555,2]
[346913610,1735368638765,-565.71,0.00013689,2]
[346913611,1735368638775,-500.0,0.00013689,2]
[346913612,1735368638783,-500.0,0.00013689,2]
[346913613,1735368638793,-500.0,0.00013689,2]
[346913614,1735368638802,-500.0,0.00013689,2]
[346913615,1735368638811,-500.0,0.00013689,2]
[346913616,1735368638821,-339.76822635,0.00013689,2]
[346913617,1735368638830,-433.86525514,0.00013689,2]
[346913618,1735368638840,-500.81242823,0.00013689,2]
[346913619,1735368638850,-500.0,0.00013689,2]
[346913620,1735368638859,-500.0,0.00013689,2]
[346913621,1735368638868,-522.48074656,0.00013689,2]
[346913622,1735368638877,-501.47277047,0.00013689,2]
[346913623,1735368638888,-500.0,0.00013689,2]
[346913624,1735368638897,-500.0,0.00013689,2]
[346913625,1735368638908,-500.0,0.00013689,2]
[346913626,1735368638918,-611.61575657,0.00013689,2]
[346913627,1735368638927,-357.8579733,0.0001369,2]
[346913628,1735368638937,-500.0,0.0001369,2]
[346913629,1735368638946,-500.0,0.0001369,2]
[346913630,1735368638955,-500.0,0.0001369,2]
[346913631,1735368638964,-500.0,0.00013697,2]
[346913632,1735368638975,-369.99513233,0.00013697,2]
[346913633,1735368638985,-385.923077,0.00013699,2]
[346913634,1735368638994,-500.0,0.00013699,2]
[346913635,1735368639003,-500.0,0.00013699,2]
[346913636,1735368639012,-190.49895179,0.00013699,2]
[346913637,1735368639022,-565.71,0.00013963,2]
[346913638,1735368639031,-500.0,0.00013963,2]
[346913639,1735368639041,-400.0,0.00013973,2]
[346913640,1735368639053,-352.4094699,0.00014082,2]
[346913641,1735368639062,-352.4094699,0.00014082,2]
[346913642,1735368639071,-352.0334382,0.00014082,2]
[346913643,1735368639080,-565.71,0.00014237,2]
[346913644,1735368639089,-500.0,0.00014237,2]
[346913645,1735368639099,-894.562,0.0001425,2]
[346913646,1735368639109,-214.2955403,0.00014356,2]
[346913647,1735368639118,-287.1912437,0.00014356,2]
[346913648,1735368639128,-153.0,0.00014356,2]
[346913649,1735368639138,-153.0,0.00014356,2]
[346913650,1735368639147,-153.4855449,0.00014356,2]
[346913651,1735368639157,-214.2955403,0.00014356,2]
[346913652,1735368639167,-214.2955403,0.00014356,2]
[346913653,1735368639177,-153.4855449,0.00014356,2]
[346913654,1735368639187,-153.4855449,0.00014356,2]
[346913655,1735368639196,-214.2955403,0.00014356,2]
[346913656,1735368639206,-153.0,0.00014356,2]
[346913657,1735368639215,-214.2955403,0.00014356,2]
[346913658,1735368639224,-153.4855449,0.00014356,2]
[346913659,1735368639233,-153.0,0.00014356,2]
[346913660,1735368639243,-214.2955403,0.00014356,2]
[346913661,1735368639251,-153.4855449,0.00014356,2]
[346913662,1735368639261,-153.4855449,0.00014356,2]
[346913663,1735368639270,-214.2955403,0.00014356,2]
[346913664,1735368639279,-153.4855449,0.00014356,2]
[346913665,1735368639288,-214.2955403,0.00014356,2]
[346913666,1735368639297,-153.4855449,0.00014356,2]
[346913667,1735368639306,-4.10500135,0.00014356,2]
[346913701,1735368640731,-459.28172165,0.00014356,2]
[346913703,1735368640741,-257.584,0.00014389,2]
[346913704,1735368640750,-534.0,0.00014389,2]
[346913707,1735368640759,-2110.0,0.00014389,2]
[346913708,1735368640768,-2353.0,0.00014389,2]
[346913710,1735368640777,-565.71,0.00014511,2]
[346913712,1735368640786,-500.0,0.00014511,2]
[346913714,1735368640796,-9375.91679364,0.00014683,2]
[346913716,1735368640805,-565.71,0.00014785,2]
[346913718,1735368640814,-500.0,0.00014785,2]
[346913721,1735368640825,-200.8162339,0.00014849,2]
[346913722,1735368640834,-1006.93677435,0.00014877,2]
[346913724,1735368640843,-153.7817638,0.00014904,2]
[346913726,1735368640852,-500.0,0.00014999,2]
[346913728,1735368640862,-500.0,0.00014999,2]
[346913730,1735368640871,-500.0,0.00014999,2]
[346913732,1735368640880,-500.0,0.00014999,2]
[346913734,1735368640890,-359.97,0.00014999,2]
[346913736,1735368640899,-749.69460368,0.00014999,2]
[346913738,1735368640908,-37233.08661193,0.00015,2]
[346913740,1735368640917,-840.92189347,0.00015,2]
[346913742,1735368640927,-4215.0,0.00015,2]
[346913744,1735368640937,-3405.0,0.00015,2]
[346913746,1735368640946,-151.0,0.00015,2]
[346913748,1735368640955,-151.0,0.00015,2]
[346913750,1735368640965,-199.677019,0.00015,2]
[346913752,1735368640974,-199.677019,0.00015,2]
[346913754,1735368640984,-151.0,0.00015,2]
[346913756,1735368640993,-151.0,0.00015,2]
[346913758,1735368641002,-352.4094699,0.00015041,2]
[346913760,1735368641011,-352.4094699,0.00015041,2]
[346913762,1735368641021,-352.4094699,0.00015041,2]
[346913764,1735368641030,-349.7553399,0.00015041,2]
[346913766,1735368641038,-565.71,0.00015059,2]
[346913768,1735368641047,-500.0,0.00015059,2]
[346913770,1735368641057,-153.4855449,0.00015178,2]
[346913772,1735368641066,-214.2955403,0.00015178,2]
[346913774,1735368641076,-214.2955403,0.00015178,2]
[346913776,1735368641085,-153.4855449,0.00015178,2]
[346913778,1735368641094,-153.4855449,0.00015178,2]
[346913780,1735368641104,-212.6306497,0.00015178,2]
[346913782,1735368641113,-153.4855449,0.00015178,2]
[346913784,1735368641123,-153.4855449,0.00015178,2]
[346913786,1735368641133,-565.71,0.00015333,2]
[346913789,1735368641143,-500.0,0.00015333,2]
[346913791,1735368641152,-153.0,0.00015452,2]
[346913793,1735368641161,-500.0,0.00015599,2]
[346913795,1735368641170,-13600.0740998,0.000156,2]
[346913796,1735368641180,-151.0,0.000156,2]
[346913799,1735368641189,-151.0,0.000156,2]
[346913800,1735368641199,-203.879876,0.000156,2]
[346913802,1735368641208,-151.0,0.000156,2]
[346913804,1735368641217,-151.0,0.000156,2]
[346913806,1735368641227,-151.0,0.000156,2]
[346913808,1735368641236,-500.0,0.000156,2]
[346913810,1735368641246,-199.677019,0.000156,2]
[346913811,1735368641255,-199.677019,0.000156,2]
[346913812,1735368641264,-151.0,0.000156,2]
[346913813,1735368641273,-151.0,0.000156,2]
[346913815,1735368641282,-565.71,0.00015607,2]
[346913817,1735368641292,-500.0,0.00015607,2]
[346913819,1735368641302,-151.0,0.000157,2]
[346913821,1735368641311,-151.0,0.000157,2]
[346913822,1735368641320,-1000.0,0.000158,5]
[346913823,1735368641329,-151.0,0.000158,2]
[346913824,1735368641339,-151.0,0.000158,2]
[346913825,1735368641347,-151.0,0.000158,2]
[346913826,1735368641357,-98510.21685738,0.0001584,2]
[346913839,1735369541125,-700.0,0.00012823,2]
[346913840,1735369541145,-1322.44771613,0.00012853,2]
[346913841,1735369550093,-534.567837,0.00012853,2]
[346913842,1735369550114,-117.84848266,0.00012953,2]
[346913843,1735369625091,-1058.85493307,0.00012953,2]
[346913844,1735369627112,-1197.11567185,0.00012953,2]
[346913845,1735369651098,-1624.67831952,0.00012953,2]
[346913926,1735369831893,-2803.52954792,0.00012953,2]
[346913927,1735369831903,-4252.7430644,0.00013648,2]
[346913928,1735369831912,-261.31258617,0.00013688,2]
[346913929,1735369831922,-502.73635605,0.00013689,2]
[346913930,1735369831932,-275.32811021,0.00013689,2]
[346913931,1735369831941,-500.4512976,0.00013689,2]
[346913932,1735369831950,-192.961538,0.00013699,2]
[346913934,1735369831959,-394.0,0.00013848,2]
[346913936,1735369831968,-331.02528,0.00013926,2]
[346913938,1735369831977,-400.0,0.00013973,2]
[346913940,1735369831986,-150.0,0.00014389,2]
[346913942,1735369831995,-150.0,0.00014389,2]
[346913944,1735369832004,-500.0,0.00014472,2]
[346913945,1735369832013,-150.0,0.00014473,2]
[346913947,1735369832022,-150.0,0.00014473,2]
[346913949,1735369832032,-2110.0,0.00014473,2]
[346913950,1735369832041,-534.0,0.00014473,2]
[346913952,1735369832050,-2353.0,0.00014473,2]
[346913954,1735369832059,-500.0,0.00014746,2]
[346913955,1735369832069,-6802.02695502,0.00014953,2]
[346913957,1735369832079,-500.0,0.0001502,2]
[346913959,1735369832088,-886.106,0.0001505,2]
[346913960,1735369832098,-500.0,0.00015057,2]
[346913962,1735369832107,-500.0,0.00015057,2]
[346913964,1735369832116,-500.0,0.00015057,2]
[346913966,1735369832125,-500.0,0.00015057,2]
[346913967,1735369832135,-439.93,0.00015057,2]
[346913969,1735369832143,-500.0,0.00015057,2]
[346913970,1735369832152,-500.0,0.00015057,2]
[346913972,1735369832162,-500.0,0.00015057,2]
[346913974,1735369832171,-500.0,0.00015057,2]
[346913976,1735369832180,-500.0,0.00015057,2]
[346913978,1735369832189,-500.0,0.00015057,2]
[346913979,1735369832199,-532.60944192,0.00015057,2]
[346913981,1735369832209,-500.0,0.00015294,2]
[346913983,1735369832218,-500.0,0.00015331,2]
[346913985,1735369832227,-500.0,0.00015568,2]
[346913986,1735369832237,-8046.99353589,0.0001559,2]
[346913988,1735369832246,-500.0,0.00015605,2]
[346913990,1735369832256,-200.816234,0.00015681,2]
[346913991,1735369832266,-39064.23005284,0.0001584,2]
[346913994,1735369832278,-2267.67880353,0.0001584,2]
[346914028,1735369837686,-389.3367496,0.00015057,2]
[346914030,1735369837698,-110.6632504,0.00015057,2]
[346914032,1735369837707,-8146.9212886,0.0001584,2]
[346914131,1735369839804,-37297.20047965,0.0001584,2]
[346914132,1735369839815,-500.0,0.00015842,2]
[346914133,1735369839824,-500.0,0.00015879,2]
[346914134,1735369839834,-906.91794811,0.0001588,2]
[346914135,1735369839844,-337.869,0.0001588,2]
[346914136,1735369839855,-237.94734625,0.00015899,2]
[346914137,1735369839864,-151.0,0.000159,2]
[346914138,1735369839874,-3000.0,0.000159,2]
[346914139,1735369839884,-1957.850757,0.000159,2]
[346914140,1735369839897,-32539.2812875,0.000159,2]
[346914141,1735369839907,-227.52824816,0.00015973,2]
[346914142,1735369839916,-501.91477978,0.00015973,2]
[346914143,1735369839925,-501.23058084,0.00015973,2]
[346914144,1735369839936,-423.73092737,0.00015973,2]
[346914145,1735369839946,-417.55606696,0.00015973,2]
[346914146,1735369839955,-501.36817394,0.00015973,2]
[346914147,1735369839964,-500.0,0.00015973,2]
[346914148,1735369839974,-160.37057183,0.00015999,2]
[346914149,1735369839983,-595.12017017,0.00016,2]
[346914150,1735369839993,-54666.51199417,0.00016,2]
[346914166,1735370000924,-288.8,0.00023,120]
[346914167,1735370012663,-21030.73290508,0.00020482,120]
[346914168,1735370012688,-200000.0,0.00020482,120]
[346914169,1735370012711,-200000.0,0.00020482,120]
[346914170,1735370012735,-439.39034758,0.00020482,120]
[346914171,1735370012758,-500.0,0.00020482,120]
[346914172,1735370012783,-2188.20955055,0.00020482,120]
[346914173,1735370012806,-999.11237918,0.00020482,60]
[346914174,1735370054922,-202.6097812,0.0002095,60]
[346914175,1735370055054,-234.25724099,0.00023,60]
[346914176,1735370055088,-250.0,0.00024,120]
[346914177,1735370055113,-165.491698,0.0002411,60]
[346914178,1735370055138,-165.491698,0.0002411,70]
[346914179,1735370055162,-165.491698,0.0002411,80]
[346914180,1735370055186,-165.491698,0.0002411,90]
[346914181,1735370055210,-165.491698,0.0002411,100]
[346914182,1735370055235,-165.491698,0.0002411,110]
[346914183,1735370055260,-165.491698,0.0002411,119]
[346914184,1735370055289,-250.0,0.00025,120]
[346914185,1735370055315,-6913.6802811,0.000255,120]
[346914186,1735370055339,-612.03447941,0.00025645,120]
[346914187,1735370055363,-4904.35962671,0.00025646,120]
[346914188,1735370055388,-897.54625409,0.00026,60]
[346914189,1735370055413,-1000.0,0.00026,120]
[346914190,1735370055440,-200.0,0.00027,120]
[346914191,1735370055465,-629.85700285,0.00027,120]
[346914192,1735370055490,-1000.0,0.00027,120]
[346914193,1735370055515,-30580.25711672,0.00027,120]
[346914194,1735370055540,-400.0,0.00027397,60]
[346914195,1735370055566,-3103.405141,0.00027397,120]
[346914196,1735370083460,1915.00086984,0.00023,120]
[346914197,1735370084018,902.31832,0.00023,120]
[346914198,1735370096933,1031.6814084,0.00023,120]
[346914199,1735370119911,10000.0,0.00023,120]
[346914200,1735370131000,160.0,0.00021198,120]
[346914201,1735370152471,2118.0,0.00023,120]
[346914202,1735370181492,-152.0,0.00027,120]
[346914203,1735370181519,-381.61199,0.000276,120]
[346914204,1735370181545,-384.97193,0.000277,120]
[346914205,1735370181569,-875.587,0.0002779,120]
[346914206,1735370181595,-1500.0,0.00028,120]
[346914207,1735370181624,-381.61199,0.000282,120]
[346914208,1735370181650,-381.61199,0.000288,120]
[346914209,1735370181676,-875.587,0.0002899,120]
[346914210,1735370181701,-263.22303,0.00029,120]
[346914211,1735370181729,-1000.0,0.00029,120]
[346914212,1735370181754,-263.39336,0.00029,120]
[346914213,1735370181780,-150.5,0.0002927,120]
[346914214,1735370181805,-150.5,0.0002927,120]
[346914215,1735370181831,-150.5,0.0002927,120]
[346914216,1735370181958,-150.5,0.0002927,120]
[346914217,1735370181983,-150.5,0.0002928,120]
[346914218,1735370182008,-150.5,0.0002928,120]
[346914219,1735370182035,-150.5,0.0002928,120]
[346914220,1735370182060,-150.5,0.0002928,120]
[346914221,1735370182084,-150.5,0.0002928,120]
[346914222,1735370182109,-150.5,0.0002929,120]
[346914223,1735370182139,-150.5,0.0002929,120]
[346914224,1735370182164,-150.5,0.0002929,120]
[346914225,1735370182189,-150.5,0.0002929,120]
[346914226,1735370182220,-150.5,0.0002929,120]
[346914227,1735370182247,-381.61199,0.000294,120]
[346914228,1735370182272,-167.87310654,0.000299,120]
[346914229,1735370182298,-271.61,0.0002997,120]
[346914230,1735370182324,-3264.0,0.0002997,120]
[346914231,1735370182351,-3264.0,0.0002997,120]
[346914232,1735370182378,-3264.0,0.0002998,120]
[346914233,1735370182403,-3264.0,0.0002998,120]
[346914234,1735370182429,-3264.0,0.0002998,120]
[346914235,1735370182455,-3273.43,0.0002998,120]
[346914236,1735370182481,-239.42,0.0002999,120]
[346914237,1735370182506,-174.02,0.0002999,120]
[346914238,1735370182531,-3264.0,0.0002999,120]
[346914239,1735370182558,-3264.0,0.0002999,120]
[346914240,1735370182583,-3264.0,0.0002999,120]
[346914241,1735370182609,-3264.0,0.0002999,120]
[346914242,1735370182637,-381.61199,0.0003,120]
[346914243,1735370182663,-1000.0,0.0003,120]
[346914244,1735370182689,-5006.74,0.0003,120]
[346914245,1735370182714,-400.0,0.0003,120]
[346914246,1735370182739,-200.0,0.0003,120]
[346914247,1735370182764,-50000.0,0.0003,120]
[346914248,1735370182788,-151.0,0.0003,120]
[346914249,1735370182814,-151.0,0.0003,120]
[346914250,1735370182839,-3132.0,0.0003,120]
[346914251,1735370182865,-875.562,0.0003019,120]
[346914252,1735370182891,-381.61199,0.000306,120]
[346914253,1735370182916,-263.22303,0.000307,120]
[346914254,1735370182941,-1000.0,0.00031,120]
[346914255,1735370182967,-381.61199,0.000312,120]
[346914256,1735370182991,-151.0,0.00031233,120]
[346914257,1735370183020,-875.595,0.0003139,120]
[346914258,1735370183044,-151.0,0.00031397,120]
[346914259,1735370183070,-381.612,0.000318,120]
[346914260,1735370183097,-3103.405141,0.00031963,120]
[346914261,1735370183123,-1500.0,0.00032,120]
[346914262,1735370183156,-151.0,0.00032466,120]
[346914263,1735370183189,-16125.758,0.000325,120]
[346914264,1735370183219,-16125.758,0.000325,120]
[346914265,1735370183249,-16125.758,0.000325,120]
[346914266,1735370183280,-16125.759,0.000325,120]
[346914267,1735370183312,-16125.758,0.000325,120]
[346914268,1735370183345,-875.59,0.0003259,120]
[346914269,1735370183376,-151.0,0.00032795,120]
[346914270,1735370190746,160.0,0.0002107,120]
[346914271,1735370250784,160.0,0.00020788,120]
[346914272,1735370310781,160.0,0.00020894,120]
[346914273,1735370351601,500.0,0.00020476,120]
[346914274,1735370370712,160.0,0.00020868,120]
[346914275,1735370383148,-411.61240149,0.0002,30]
[346914276,1735370383190,-152.73,0.000205,31]
[346914277,1735370383218,-152.73,0.000205,31]
[346914278,1735370383246,-152.73,0.000205,31]
[346914279,1735370383275,-152.73,0.000205,31]
[346914280,1735370383302,-152.73,0.000205,31]
[346914281,1735370383330,-152.73,0.000205,31]
[346914282,1735370383358,-152.73,0.000205,31]
[346914283,1735370383386,-152.73,0.000205,31]
[346914284,1735370383413,-152.73,0.000205,31]
[346914285,1735370383440,-152.73,0.000205,31]
[346914286,1735370383469,-152.73,0.000205,31]
[346914287,1735370383501,-152.73,0.000205,31]
[346914288,1735370383529,-152.73,0.000205,31]
[346914289,1735370383556,-152.73,0.000205,31]
[346914290,1735370383584,-152.73,0.000205,31]
[346914291,1735370383614,-393.10790686,0.000212,30]
[346914292,1735370383642,-3000.0,0.00021917,30]
[346914293,1735370383667,-3000.0,0.00021917,30]
[346914294,1735370383691,-3000.0,0.00021917,30]
[346914295,1735370383718,-3000.0,0.00021917,30]
[346914296,1735370383743,-3000.0,0.00021917,30]
[346914297,1735370383767,-3000.0,0.00021917,30]
[346914298,1735370383794,-3000.0,0.00021917,30]
[346914299,1735370383819,-3000.0,0.00021917,30]
[346914300,1735370383843,-3000.0,0.00021917,30]
[346914301,1735370383867,-3000.0,0.00021917,30]
[346914302,1735370383891,-3000.0,0.00021917,30]
[346914303,1735370383916,-3000.0,0.00021917,30]
[346914304,1735370383940,-3000.0,0.00021917,30]
[346914305,1735370383964,-3000.0,0.00021917,30]
[346914306,1735370383991,-3000.0,0.00021917,30]
[346914307,1735370384016,-3000.0,0.00021917,30]
[346914308,1735370384042,-3000.0,0.00021917,30]
[346914309,1735370384066,-3000.0,0.00021917,30]
[346914310,1735370384200,-3000.0,0.00021917,30]
[346914311,1735370384226,-3000.0,0.00021917,30]
[346914312,1735370384251,-1137.36205712,0.00021917,30]
[346914313,1735370384280,-152.73,0.00022,31]
[346914314,1735370384307,-152.73,0.00022,31]
[346914315,1735370384333,-152.73,0.00022,31]
[346914316,1735370384361,-152.73,0.00022,31]
[346914317,1735370384387,-152.73,0.00022,31]
[346914318,1735370384415,-152.73,0.00022,31]
[346914319,1735370384442,-152.73,0.00022,31]
[346914320,1735370384468,-152.73,0.00022,31]
[346914321,1735370384495,-152.73,0.00022,31]
[346914322,1735370384524,-152.73,0.00022,31]
[346914323,1735370384552,-152.73,0.00022,31]
[346914324,1735370384580,-152.73,0.00022,31]
[346914325,1735370384611,-152.73,0.00022,31]
[346914326,1735370384638,-152.73,0.00022,31]
[346914327,1735370384665,-152.73,0.00022,31]
[346914328,1735370384692,-152.73,0.00022,31]
[346914329,1735370384719,-152.73,0.00022,31]
[346914330,1735370384748,-152.73,0.00022,31]
[346914331,1735370384777,-152.73,0.00022,31]
[346914332,1735370384806,-152.73,0.00022,31]
[346914333,1735370384834,-500.0,0.00023476,30]
[346914334,1735370384860,-500.0,0.00023476,30]
[346914335,1735370384885,-504.70864023,0.00023476,30]
[346914336,1735370384916,-152.73,0.000235,31]
[346914337,1735370384945,-152.73,0.000235,31]
[346914338,1735370384972,-152.73,0.000235,31]
[346914339,1735370385000,-152.73,0.000235,31]
[346914340,1735370385028,-152.73,0.000235,31]
[346914341,1735370385055,-152.73,0.000235,31]
[346914342,1735370385082,-152.73,0.000235,31]
[346914343,1735370385110,-152.73,0.000235,31]
[346914344,1735370385136,-152.73,0.000235,31]
[346914345,1735370385163,-152.73,0.000235,31]
[346914346,1735370385194,-152.73,0.000235,31]
[346914347,1735370385222,-152.73,0.000235,31]
[346914348,1735370385248,-152.73,0.000235,31]
[346914349,1735370385278,-152.73,0.000235,31]
[346914350,1735370385305,-152.73,0.000235,31]
[346914351,1735370385333,-152.73,0.000235,31]
[346914352,1735370385360,-152.73,0.000235,31]
[346914353,1735370385387,-152.73,0.000235,31]
[346914354,1735370385415,-152.73,0.000235,31]
[346914355,1735370385446,-152.73,0.000235,31]
[346914356,1735370385471,-499.3,0.000237,30]
[346914357,1735370385498,-502.60995498,0.000237,30]
[346914358,1735370385525,-500.0,0.000237,30]
[346914359,1735370385550,-500.0,0.000237,30]
[346914360,1735370385574,-500.0,0.000237,30]
[346914361,1735370385599,-163.93066012,0.000237,30]
[346914362,1735370385623,-13981.0,0.00024,30]
[346914363,1735370385648,-165.491698,0.0002411,31]
[346914364,1735370385673,-165.491698,0.0002411,41]
[346914365,1735370385697,-165.491698,0.0002411,51]
[346914366,1735370385724,-1000.5,0.00025,31]
[346914367,1735370385749,-1029.6,0.00025,31]
[346914368,1735370385776,-1000.0,0.00025,30]
[346914369,1735370385800,-2449.825723,0.00025,30]
[346914370,1735370385828,-47114.96352509,0.00025,30]
[346914371,1735370385852,-252.73127102,0.00025,30]
[346914372,1735370385877,-15146.50918449,0.00025,30]
[346914373,1735370385902,-405.80181435,0.00025,30]
[346914374,1735370537493,500.0,0.00023476,30]
[346914375,1735370537854,884.20064905,0.00023476,30]
[346914376,1735370543183,1600.0,0.00023476,30]
[346914377,1735370543546,1600.0,0.00023476,30]
[346914378,1735370543919,1600.0,0.00023476,30]
[346914379,1735370544240,1600.0,0.00023476,30]
[346914380,1735370544445,862.94397205,0.00023477,30]
[346914381,1735370544562,1600.0,0.00023476,30]
[346914382,1735370544922,1600.0,0.00023476,30]
[346914383,1735370545335,1600.0,0.00023476,30]
[346914384,1735370545689,1600.0,0.00023476,30]
[346914385,1735370546038,1600.0,0.00023476,30]
[346914386,1735370546414,1600.0,0.00023476,30]
[346914387,1735370546512,900.0,0.00023476,30]
[346914388,1735370546836,900.0,0.00023476,30]
[346914389,1735370547157,900.0,0.00023476,30]
[346914390,1735370547305,1600.0,0.00023476,30]
[346914391,1735370547728,1600.0,0.00023476,30]
[346914392,1735370547818,1100.0,0.00023476,30]
[346914393,1735370547996,900.0,0.00023476,30]
[346914394,1735370548055,1600.0,0.00023476,30]
[346914395,1735370548205,1100.0,0.00023476,30]
[346914396,1735370548370,900.0,0.00023476,30]
[346914397,1735370548417,2725.60575023,0.00023476,30]
[346914398,1735370548549,1100.0,0.00023476,30]
[346914399,1735370548670,900.0,0.00023476,30]
[346914400,1735370548883,1100.0,0.00023476,30]
[346914401,1735370549015,900.0,0.00023476,30]
[346914402,1735370549262,1100.0,0.00023476,30]
[346914403,1735370549403,900.0,0.00023476,30]
[346914404,1735370549606,1100.0,0.00023476,30]
[346914405,1735370549751,900.0,0.00023476,30]
[346914406,1735370549979,1100.0,0.00023476,30]
[346914407,1735370550094,900.0,0.00023476,30]
[346914408,1735370550459,900.0,0.00023476,30]
[346914409,1735370550767,160.0,0.00023947,120]
[346914410,1735370550798,900.0,0.00023476,30]
[346914411,1735370550840,1100.0,0.00023476,30]
[346914412,1735370551157,1315.10320166,0.00023476,30]
[346914413,1735370551188,1100.0,0.00023476,30]
[346914414,1735370551538,1100.0,0.00023476,30]
[346914415,1735370551935,1100.0,0.00023476,30]
[346914416,1735370552275,1100.0,0.00023476,30]
[346914417,1735370552607,1100.0,0.00023476,30]
[346914418,1735370552945,1642.61497831,0.00023476,30]
[346914419,1735370611262,160.0,0.00024906,120]
[346914420,1735370625801,230.54179947,8.938e-05,2]
[346914421,1735370633973,230.54179947,8.938e-05,2]
[346914422,1735370634777,165.516925,0.00020602,30]
[346914423,1735370651515,500.0,0.00020477,120]
[346914424,1735370655271,165.694579,0.0002411,41]
[346914425,1735370655673,165.694579,0.0002411,54]
[346914426,1735370655882,165.694579,0.0002411,67]
[346914427,1735370657352,165.694579,0.0002411,80]
[346914428,1735370657585,165.694579,0.0002411,93]
[346914429,1735370657786,165.694579,0.0002411,106]
[346914430,1735370657997,165.694579,0.0002411,119]
[346914431,1735370685519,1000051.0,0.00025,29]
[346914432,1735370694174,1000052.0,0.00025,29]
[346914433,1735370696818,1000053.0,0.00025,29]
[346914434,1735370699452,1000054.0,0.00025,29]
[346914435,1735370702381,1000055.0,0.00025,29]
[346914436,1735370704617,1000055.0,0.00025,29]
[346914437,1735370707135,1000056.0,0.00025,29]
[346914438,1735370709824,1000057.0,0.00025,29]
[346914439,1735370712979,1000058.0,0.00025,29]
[346914440,1735370715555,886962.96423795,0.00025,29]
[346914441,1735370733132,-250.0,9.398e-05,2]
[346914442,1735370733154,-250.0,9.493e-05,2]
[346914443,1735370733176,-250.0,9.589e-05,2]
[346914444,1735370733197,-77.99729293,0.00010959,2]
[346914445,1735370758107,-173.00270707,0.00010741,2]
[346914446,1735370758128,-173.00270707,0.00010849,2]
[346914447,1735370758148,-173.00270707,0.00010959,2]
[346914448,1735370758171,-500.0,0.00013688,2]
[346914449,1735370758192,-192.961539,0.00013819,2]
[346914450,1735370758214,-300.0,0.00014152,2]
[346914451,1735370758234,-534.0,0.00014153,2]
[346914452,1735370758254,-2110.0,0.00014153,2]
[346914453,1735370758273,-889.67675849,0.00014153,2]
[346914455,1735370771570,930000.0,0.00025,29]
[346914456,1735370791268,160.0,0.0002418,120]
[346914457,1735370826096,-161.78378594,0.00013871,2]
[346914458,1735370826118,-161.78378594,0.00014011,2]
[346914459,1735370826139,-155.06332093,0.00014153,2]
[346914460,1735370839092,-400.0,0.00013833,2]
[346914461,1735370839114,-50.0,0.00013973,2]
[346914462,1735370848618,3849.00059824,0.00025,120]
[346914463,1735370850513,160.0,0.00024246,120]
[346914464,1735370851100,-350.0,0.00013833,2]
[346914465,1735370851124,-189.73149972,0.00013973,2]
[346914466,1735370861856,1502.07469391,0.00020459,120]
[346914467,1735370867163,1378.12890158,0.00020459,120]